[Event "Titled Tuesday Blitz July 26 Late 2022"]
[White "Kujawski, Adam"]
[Black "Ardila, Oscar Humberto"]
[WhiteFideId "1100920"]
[BlackFideId "4404742"]
[WhiteElo "1972"]
[BlackElo "1956"]
[Result "0-1"]
[Round "11"]
[TimeControl "180+1"]
[Date "2022.07.27"]
[WhiteClock "0:00:02"]
[BlackClock "0:00:18"]

1. e4 {[%clk 0:03:00]}  e5 {[%clk 0:02:58]} 2. Nf3 {[%clk 0:03:00]}  Nf6 {[%clk 0:02:56]} 3. Nc3 {[%clk 0:02:59]}  Nc6 {[%clk 0:02:56]} 4. Bb5 {[%clk 0:02:57]}  Bb4 {[%clk 0:02:56]} 5. O-O {[%clk 0:02:56]}  O-O {[%clk 0:02:56]} 6. d3 {[%clk 0:02:57]}  d6 {[%clk 0:02:55]} 7. Ne2 {[%clk 0:02:56]}  Ne7 {[%clk 0:02:42]} 8. c3 {[%clk 0:02:55]}  Ba5 {[%clk 0:02:42]} 9. Ng3 {[%clk 0:02:54]}  Ng6 {[%clk 0:02:41]} 10. Nf5 {[%clk 0:02:53]}  Bxf5 {[%clk 0:02:40]} 11. exf5 {[%clk 0:02:53]}  Ne7 {[%clk 0:02:40]} 12. Nh4 {[%clk 0:02:47]}  c6 {[%clk 0:02:35]} 13. Ba4 {[%clk 0:02:46]}  Qd7 {[%clk 0:02:35]} 14. Qf3 {[%clk 0:02:44]}  d5 {[%clk 0:02:34]} 15. Bg5 {[%clk 0:02:42]}  e4 {[%clk 0:02:28]} 16. Qh3 {[%clk 0:02:02]}  exd3 {[%clk 0:02:16]} 17. Bxf6 {[%clk 0:02:01]}  gxf6 {[%clk 0:02:16]} 18. Qxd3 {[%clk 0:01:56]}  Bc7 {[%clk 0:02:07]} 19. g3 {[%clk 0:01:51]}  Rfe8 {[%clk 0:01:58]} 20. Rae1 {[%clk 0:01:42]}  Kg7 {[%clk 0:01:57]} 21. f4 {[%clk 0:01:31]}  Bb6+ {[%clk 0:01:53]} 22. Kg2 {[%clk 0:01:31]}  Nc8 {[%clk 0:01:53]} 23. c4 {[%clk 0:01:07]}  d4 {[%clk 0:01:50]} 24. b4 {[%clk 0:00:56]}  Rxe1 {[%clk 0:01:40]} 25. Rxe1 {[%clk 0:00:55]}  Ne7 {[%clk 0:01:40]} 26. Bd1 {[%clk 0:00:16]}  Rd8 {[%clk 0:01:32]} 27. c5 {[%clk 0:00:13]}  Bc7 {[%clk 0:01:32]} 28. Re4 {[%clk 0:00:12]}  b6 {[%clk 0:01:30]} 29. Bf3 {[%clk 0:00:09]}  bxc5 {[%clk 0:01:30]} 30. bxc5 {[%clk 0:00:09]}  Ba5 {[%clk 0:01:21]} 31. Kh1 {[%clk 0:00:08]}  Bc3 {[%clk 0:01:20]} 32. g4 {[%clk 0:00:07]}  Nd5 {[%clk 0:01:14]} 33. g5 {[%clk 0:00:07]}  Rb8 {[%clk 0:01:11]} 34. Kg2 {[%clk 0:00:04]}  Rb2+ {[%clk 0:01:10]} 35. Kh3 {[%clk 0:00:05]}  Qc7 {[%clk 0:01:04]} 36. Ng2 {[%clk 0:00:04]}  Qa5 {[%clk 0:01:00]} 37. Bh5 {[%clk 0:00:03]}  Qxa2 {[%clk 0:00:57]} 38. gxf6+ {[%clk 0:00:02]}  Kxf6 {[%clk 0:00:45]} 39. Re2 {[%clk 0:00:03]}  Rxe2 {[%clk 0:00:39]} 40. Bxe2 {[%clk 0:00:02]}  Qd2 {[%clk 0:00:33]} 41. Qxd2 {[%clk 0:00:01]}  Bxd2 {[%clk 0:00:34]} 42. Kg4 {[%clk 0:00:02]}  a5 {[%clk 0:00:26]} 43. Bc4 {[%clk 0:00:02]}  Nc3 {[%clk 0:00:18]} 44. Kf3 {[%clk 0:00:02]}  a4 {[%clk 0:00:18]} 0-1


[Site "https://www.chess.com"]

[Event "Titled Tuesday Blitz July 26 Late 2022"]
[White "Manukian, Artak"]
[Black "Chiu, Isaac"]
[WhiteFideId "13301373"]
[BlackFideId "30900654"]
[WhiteElo "2377"]
[BlackElo "2181"]
[Result "0-1"]
[Round "11"]
[TimeControl "180+1"]
[Date "2022.07.26"]
[WhiteClock "0:00:06"]
[BlackClock "0:00:07"]

1. e4 {[%clk 0:03:00]}  c5 {[%clk 0:02:59]} 2. Nf3 {[%clk 0:02:59]}  e6 {[%clk 0:02:58]} 3. c3 {[%clk 0:02:59]}  Nf6 {[%clk 0:02:55]} 4. e5 {[%clk 0:02:59]}  Nd5 {[%clk 0:02:56]} 5. d4 {[%clk 0:03:00]}  cxd4 {[%clk 0:02:56]} 6. cxd4 {[%clk 0:03:01]}  d6 {[%clk 0:02:56]} 7. Nc3 {[%clk 0:03:02]}  Nxc3 {[%clk 0:02:53]} 8. bxc3 {[%clk 0:03:03]}  Be7 {[%clk 0:02:53]} 9. Bd3 {[%clk 0:03:02]}  Nd7 {[%clk 0:02:54]} 10. O-O {[%clk 0:03:01]}  Qc7 {[%clk 0:02:53]} 11. Bg5 {[%clk 0:02:44]}  Bxg5 {[%clk 0:02:46]} 12. Nxg5 {[%clk 0:02:45]}  dxe5 {[%clk 0:02:39]} 13. Qh5 {[%clk 0:02:43]}  Nf6 {[%clk 0:02:38]} 14. Qh4 {[%clk 0:02:41]}  exd4 {[%clk 0:02:37]} 15. cxd4 {[%clk 0:02:29]}  Bd7 {[%clk 0:02:36]} 16. Rac1 {[%clk 0:02:15]}  Qd6 {[%clk 0:02:34]} 17. Rfd1 {[%clk 0:02:09]}  h6 {[%clk 0:02:29]} 18. Ne4 {[%clk 0:01:53]}  Nxe4 {[%clk 0:02:25]} 19. Bxe4 {[%clk 0:01:54]}  Rb8 {[%clk 0:01:57]} 20. d5 {[%clk 0:01:32]}  e5 {[%clk 0:01:56]} 21. Rc3 {[%clk 0:01:21]}  f5 {[%clk 0:01:45]} 22. Bb1 {[%clk 0:01:19]}  O-O {[%clk 0:01:44]} 23. Qh5 {[%clk 0:01:12]}  e4 {[%clk 0:01:41]} 24. h4 {[%clk 0:01:05]}  Rbc8 {[%clk 0:01:39]} 25. Rg3 {[%clk 0:01:03]}  Be8 {[%clk 0:01:22]} 26. Qe2 {[%clk 0:01:02]}  Qe5 {[%clk 0:01:14]} 27. d6 {[%clk 0:00:57]}  Bd7 {[%clk 0:01:11]} 28. Rg6 {[%clk 0:00:50]}  Rf6 {[%clk 0:01:09]} 29. Rxf6 {[%clk 0:00:49]}  Qxf6 {[%clk 0:01:09]} 30. a4 {[%clk 0:00:45]}  Qxh4 {[%clk 0:01:03]} 31. Ba2+ {[%clk 0:00:44]}  Kh7 {[%clk 0:01:02]} 32. Bd5 {[%clk 0:00:41]}  b6 {[%clk 0:01:00]} 33. g3 {[%clk 0:00:39]}  Qf6 {[%clk 0:00:59]} 34. Bb7 {[%clk 0:00:34]}  Rd8 {[%clk 0:00:51]} 35. Qa6 {[%clk 0:00:29]}  Be8 {[%clk 0:00:47]} 36. Qxa7 {[%clk 0:00:27]}  Rxd6 {[%clk 0:00:46]} 37. Rxd6 {[%clk 0:00:28]}  Qxd6 {[%clk 0:00:46]} 38. Bc8 {[%clk 0:00:29]}  Bg6 {[%clk 0:00:35]} 39. a5 {[%clk 0:00:27]}  bxa5 {[%clk 0:00:29]} 40. Qxa5 {[%clk 0:00:28]}  e3 {[%clk 0:00:28]} 41. Bxf5 {[%clk 0:00:22]}  exf2+ {[%clk 0:00:28]} 42. Kxf2 {[%clk 0:00:22]}  Qf6 {[%clk 0:00:20]} 43. g4 {[%clk 0:00:22]}  h5 {[%clk 0:00:19]} 44. Kg3 {[%clk 0:00:22]}  hxg4 {[%clk 0:00:14]} 45. Bxg4 {[%clk 0:00:22]}  Qd6+ {[%clk 0:00:13]} 46. Kf3 {[%clk 0:00:20]}  Qd3+ {[%clk 0:00:12]} 47. Kf4 {[%clk 0:00:20]}  Qe4+ {[%clk 0:00:11]} 48. Kg3 {[%clk 0:00:20]}  Qe3+ {[%clk 0:00:12]} 49. Bf3 {[%clk 0:00:18]}  Kh6 {[%clk 0:00:11]} 50. Qb4 {[%clk 0:00:15]}  Bh5 {[%clk 0:00:07]} 51. Qd6+ {[%clk 0:00:10]}  Kh7 {[%clk 0:00:08]} 52. Qf4 {[%clk 0:00:09]}  Qxf4+ {[%clk 0:00:07]} 53. Kxf4 {[%clk 0:00:10]}  Bxf3 {[%clk 0:00:08]} 54. Kxf3 {[%clk 0:00:10]}  Kh6 {[%clk 0:00:08]} 55. Kf4 {[%clk 0:00:08]}  Kh5 {[%clk 0:00:08]} 56. Kf3 {[%clk 0:00:08]}  Kh4 {[%clk 0:00:08]} 57. Kf2 {[%clk 0:00:08]}  g6 {[%clk 0:00:06]} 58. Kf3 {[%clk 0:00:06]}  g5 {[%clk 0:00:06]} 59. Kf2 {[%clk 0:00:06]}  Kh3 {[%clk 0:00:06]} 60. Kf1 {[%clk 0:00:07]}  g4 {[%clk 0:00:05]} 61. Kf2 {[%clk 0:00:06]}  Kh2 {[%clk 0:00:06]} 62. Kf1 {[%clk 0:00:06]}  g3 {[%clk 0:00:07]} 0-1


[Site "https://www.chess.com"]

[Event "Titled Tuesday Blitz July 26 Late 2022"]
[White "Medeiros Jr, Francisco De Assis"]
[Black "Aaron, Deepak"]
[WhiteFideId "2114267"]
[BlackFideId "2009412"]
[WhiteElo "2020"]
[BlackElo "2635"]
[Result "0-1"]
[Round "11"]
[TimeControl "180+1"]
[Date "2022.07.26"]
[WhiteClock "0:00:04"]
[BlackClock "0:00:06"]

1. d4 {[%clk 0:03:00]}  e6 {[%clk 0:02:59]} 2. Nf3 {[%clk 0:03:01]}  f5 {[%clk 0:02:59]} 3. Bf4 {[%clk 0:02:56]}  Nf6 {[%clk 0:02:59]} 4. c4 {[%clk 0:02:55]}  Bb4+ {[%clk 0:02:58]} 5. Nbd2 {[%clk 0:02:51]}  O-O {[%clk 0:02:53]} 6. a3 {[%clk 0:02:52]}  Be7 {[%clk 0:02:53]} 7. e3 {[%clk 0:02:51]}  d6 {[%clk 0:02:52]} 8. Bd3 {[%clk 0:02:51]}  Qe8 {[%clk 0:02:51]} 9. Bg3 {[%clk 0:02:51]}  b6 {[%clk 0:02:48]} 10. e4 {[%clk 0:02:47]}  fxe4 {[%clk 0:02:43]} 11. Nxe4 {[%clk 0:02:48]}  Bb7 {[%clk 0:02:43]} 12. Qe2 {[%clk 0:02:48]}  h6 {[%clk 0:02:23]} 13. O-O {[%clk 0:02:44]}  Nbd7 {[%clk 0:02:16]} 14. Rfe1 {[%clk 0:02:31]}  Nh5 {[%clk 0:02:06]} 15. Ned2 {[%clk 0:02:16]}  e5 {[%clk 0:02:01]} 16. dxe5 {[%clk 0:02:12]}  Nxg3 {[%clk 0:01:58]} 17. hxg3 {[%clk 0:02:09]}  dxe5 {[%clk 0:01:50]} 18. Nxe5 {[%clk 0:02:04]}  Nxe5 {[%clk 0:01:35]} 19. Qxe5 {[%clk 0:02:03]}  Bc5 {[%clk 0:01:30]} 20. Qxe8 {[%clk 0:01:51]}  Raxe8 {[%clk 0:01:23]} 21. Rxe8 {[%clk 0:01:47]}  Rxe8 {[%clk 0:01:22]} 22. Nf3 {[%clk 0:01:30]}  Rf8 {[%clk 0:00:51]} 23. Rd1 {[%clk 0:01:18]}  Bxf3 {[%clk 0:00:43]} 24. gxf3 {[%clk 0:01:19]}  Rxf3 {[%clk 0:00:42]} 25. Kg2 {[%clk 0:01:19]}  Rxf2+ {[%clk 0:00:42]} 26. Kh3 {[%clk 0:01:18]}  Kf7 {[%clk 0:00:24]} 27. Rf1 {[%clk 0:01:15]}  Rxf1 {[%clk 0:00:22]} 28. Bxf1 {[%clk 0:01:15]}  Kf6 {[%clk 0:00:23]} 29. Kg4 {[%clk 0:01:15]}  Ke5 {[%clk 0:00:23]} 30. Kf3 {[%clk 0:01:02]}  Kd4 {[%clk 0:00:21]} 31. g4 {[%clk 0:00:58]}  Be7 {[%clk 0:00:20]} 32. Kf4 {[%clk 0:00:55]}  Bg5+ {[%clk 0:00:21]} 33. Kf5 {[%clk 0:00:54]}  Bc1 {[%clk 0:00:21]} 34. b4 {[%clk 0:00:45]}  Bxa3 {[%clk 0:00:21]} 35. b5 {[%clk 0:00:45]}  Bb2 {[%clk 0:00:19]} 36. g5 {[%clk 0:00:44]}  hxg5 {[%clk 0:00:19]} 37. Kxg5 {[%clk 0:00:45]}  Kc5 {[%clk 0:00:19]} 38. Kf5 {[%clk 0:00:43]}  Kb4 {[%clk 0:00:19]} 39. Ke6 {[%clk 0:00:39]}  Ka5 {[%clk 0:00:19]} 40. Kd5 {[%clk 0:00:37]}  a6 {[%clk 0:00:19]} 41. Kc6 {[%clk 0:00:23]}  Be5 {[%clk 0:00:19]} 42. Be2 {[%clk 0:00:13]}  axb5 {[%clk 0:00:18]} 43. cxb5 {[%clk 0:00:14]}  Kb4 {[%clk 0:00:19]} 44. Bd3 {[%clk 0:00:14]}  g5 {[%clk 0:00:18]} 45. Bf5 {[%clk 0:00:13]}  Kc3 {[%clk 0:00:18]} 46. Kd5 {[%clk 0:00:13]}  Bd6 {[%clk 0:00:18]} 47. Ke4 {[%clk 0:00:13]}  Kc4 {[%clk 0:00:16]} 48. Bd7 {[%clk 0:00:13]}  g4 {[%clk 0:00:15]} 49. Ke3 {[%clk 0:00:12]}  g3 {[%clk 0:00:15]} 50. Kf3 {[%clk 0:00:12]}  c5 {[%clk 0:00:12]} 51. bxc6 {[%clk 0:00:12]}  b5 {[%clk 0:00:13]} 52. Bh3 {[%clk 0:00:03]}  b4 {[%clk 0:00:11]} 53. Ke3 {[%clk 0:00:04]}  Kc5 {[%clk 0:00:10]} 54. Bg2 {[%clk 0:00:03]}  b3 {[%clk 0:00:10]} 55. Kd3 {[%clk 0:00:03]}  Be5 {[%clk 0:00:09]} 56. Kd2 {[%clk 0:00:03]}  b2 {[%clk 0:00:06]} 57. Kc2 {[%clk 0:00:03]}  Kb6 {[%clk 0:00:06]} 58. Kb1 {[%clk 0:00:03]}  Kc7 {[%clk 0:00:07]} 59. Kc2 {[%clk 0:00:03]}  Bd4 {[%clk 0:00:07]} 60. Kd3 {[%clk 0:00:03]}  b1=Q+ {[%clk 0:00:06]} 61. Kxd4 {[%clk 0:00:04]}  Qg1+ {[%clk 0:00:06]} 0-1


[Site "https://www.chess.com"]

[Event "Titled Tuesday Blitz July 26 Late 2022"]
[White "Nakamura, Hikaru"]
[Black "Kamsky, Gata"]
[WhiteFideId "2016192"]
[BlackFideId "2000024"]
[WhiteElo "2850"]
[BlackElo "2645"]
[Result "1-0"]
[Round "11"]
[TimeControl "180+1"]
[Date "2022.07.26"]
[WhiteClock "0:00:17"]
[BlackClock "0:00:05"]

1. g3 {[%clk 0:03:00]}  g6 {[%clk 0:02:59]} 2. e4 {[%clk 0:02:59]}  Bg7 {[%clk 0:02:58]} 3. d4 {[%clk 0:02:59]}  c5 {[%clk 0:02:52]} 4. dxc5 {[%clk 0:02:57]}  Qa5+ {[%clk 0:02:49]} 5. c3 {[%clk 0:02:57]}  Qxc5 {[%clk 0:02:49]} 6. Bg2 {[%clk 0:02:55]}  Nf6 {[%clk 0:02:47]} 7. Ne2 {[%clk 0:02:41]}  O-O {[%clk 0:02:45]} 8. O-O {[%clk 0:02:41]}  d6 {[%clk 0:02:44]} 9. Be3 {[%clk 0:02:41]}  Qc7 {[%clk 0:02:42]} 10. h3 {[%clk 0:02:41]}  Nbd7 {[%clk 0:02:35]} 11. Nd2 {[%clk 0:02:37]}  a6 {[%clk 0:02:16]} 12. c4 {[%clk 0:02:23]}  Rb8 {[%clk 0:02:16]} 13. Rc1 {[%clk 0:02:21]}  b6 {[%clk 0:01:54]} 14. Nc3 {[%clk 0:02:19]}  e6 {[%clk 0:01:53]} 15. Qe2 {[%clk 0:02:09]}  Bb7 {[%clk 0:01:52]} 16. Rfd1 {[%clk 0:02:09]}  Rfd8 {[%clk 0:01:50]} 17. f4 {[%clk 0:02:05]}  Rbc8 {[%clk 0:01:48]} 18. Bf2 {[%clk 0:02:05]}  Qb8 {[%clk 0:01:47]} 19. b4 {[%clk 0:01:58]}  Ne8 {[%clk 0:01:32]} 20. Na4 {[%clk 0:01:50]}  Bc6 {[%clk 0:01:26]} 21. b5 {[%clk 0:01:50]}  Ba8 {[%clk 0:01:11]} 22. bxa6 {[%clk 0:01:50]}  Qa7 {[%clk 0:01:10]} 23. Rb1 {[%clk 0:01:41]}  Rb8 {[%clk 0:01:08]} 24. Nxb6 {[%clk 0:00:53]}  Nxb6 {[%clk 0:01:04]} 25. Qe3 {[%clk 0:00:53]}  Qxa6 {[%clk 0:01:03]} 26. Rxb6 {[%clk 0:00:53]}  Qxa2 {[%clk 0:01:00]} 27. Rdb1 {[%clk 0:00:45]}  Rxb6 {[%clk 0:00:55]} 28. Rxb6 {[%clk 0:00:43]}  h5 {[%clk 0:00:48]} 29. Qd3 {[%clk 0:00:39]}  Rc8 {[%clk 0:00:41]} 30. c5 {[%clk 0:00:32]}  d5 {[%clk 0:00:28]} 31. exd5 {[%clk 0:00:32]}  Bxd5 {[%clk 0:00:27]} 32. Bxd5 {[%clk 0:00:32]}  exd5 {[%clk 0:00:28]} 33. Ra6 {[%clk 0:00:29]}  Qb2 {[%clk 0:00:26]} 34. Qxd5 {[%clk 0:00:29]}  Nf6 {[%clk 0:00:24]} 35. Qd3 {[%clk 0:00:28]}  h4 {[%clk 0:00:22]} 36. g4 {[%clk 0:00:27]}  Qb7 {[%clk 0:00:21]} 37. Rd6 {[%clk 0:00:25]}  Kh7 {[%clk 0:00:20]} 38. Bxh4 {[%clk 0:00:25]}  Rxc5 {[%clk 0:00:17]} 39. Bxf6 {[%clk 0:00:24]}  Rc1+ {[%clk 0:00:13]} 40. Nf1 {[%clk 0:00:24]}  Qa7+ {[%clk 0:00:11]} 41. Bd4 {[%clk 0:00:21]}  Bxd4+ {[%clk 0:00:08]} 42. Qxd4 {[%clk 0:00:22]}  Qa3 {[%clk 0:00:07]} 43. Qd3 {[%clk 0:00:19]}  Qc5+ {[%clk 0:00:06]} 44. Kg2 {[%clk 0:00:17]}  Rc2+ {[%clk 0:00:05]} 45. Nd2 {[%clk 0:00:17]} 1-0


[Site "https://www.chess.com"]

[Event "Titled Tuesday Blitz July 26 Late 2022"]
[White "Ovchinnikov, Vsevolod"]
[Black "Silva, Miguel Antonio Neto"]
[WhiteFideId "24176842"]
[BlackFideId "1911929"]
[WhiteElo "2376"]
[BlackElo "2223"]
[Result "1/2-1/2"]
[Round "11"]
[TimeControl "180+1"]
[Date "2022.07.27"]
[WhiteClock "0:00:11"]
[BlackClock "0:00:22"]

1. d4 {[%clk 0:03:00]}  Nf6 {[%clk 0:02:58]} 2. c4 {[%clk 0:03:00]}  e6 {[%clk 0:02:58]} 3. g3 {[%clk 0:03:00]}  d5 {[%clk 0:02:53]} 4. Bg2 {[%clk 0:02:58]}  dxc4 {[%clk 0:02:50]} 5. Nf3 {[%clk 0:02:58]}  c5 {[%clk 0:02:51]} 6. O-O {[%clk 0:02:57]}  Nc6 {[%clk 0:02:49]} 7. Qa4 {[%clk 0:02:58]}  Bd7 {[%clk 0:02:49]} 8. Qxc4 {[%clk 0:02:57]}  b5 {[%clk 0:02:47]} 9. Qd3 {[%clk 0:02:57]}  c4 {[%clk 0:02:45]} 10. Qd1 {[%clk 0:02:57]}  Be7 {[%clk 0:02:43]} 11. a3 {[%clk 0:02:57]}  O-O {[%clk 0:02:41]} 12. Nc3 {[%clk 0:02:57]}  Rb8 {[%clk 0:02:38]} 13. Bf4 {[%clk 0:02:53]}  Rb6 {[%clk 0:02:34]} 14. e4 {[%clk 0:02:49]}  a6 {[%clk 0:02:21]} 15. d5 {[%clk 0:02:38]}  exd5 {[%clk 0:02:15]} 16. exd5 {[%clk 0:02:37]}  Na5 {[%clk 0:02:11]} 17. d6 {[%clk 0:02:35]}  Nb3 {[%clk 0:02:04]} 18. dxe7 {[%clk 0:02:30]}  Qxe7 {[%clk 0:02:03]} 19. Re1 {[%clk 0:02:30]}  Qd8 {[%clk 0:01:55]} 20. Rb1 {[%clk 0:02:26]}  Qc8 {[%clk 0:01:55]} 21. Be3 {[%clk 0:02:22]}  Rb8 {[%clk 0:01:51]} 22. Nd4 {[%clk 0:02:17]}  Nc5 {[%clk 0:01:47]} 23. Bg5 {[%clk 0:02:07]}  Rb6 {[%clk 0:01:44]} 24. Bxf6 {[%clk 0:02:02]}  Rxf6 {[%clk 0:01:40]} 25. Nd5 {[%clk 0:02:01]}  Qd8 {[%clk 0:01:40]} 26. Nxf6+ {[%clk 0:01:58]}  Qxf6 {[%clk 0:01:41]} 27. Re3 {[%clk 0:01:34]}  Rd8 {[%clk 0:01:39]} 28. Rf3 {[%clk 0:01:17]}  Qb6 {[%clk 0:01:35]} 29. Qc2 {[%clk 0:01:08]}  Bg4 {[%clk 0:01:20]} 30. Rf4 {[%clk 0:01:04]}  Bh5 {[%clk 0:01:17]} 31. Qc3 {[%clk 0:00:35]}  Nd3 {[%clk 0:01:12]} 32. Rh4 {[%clk 0:00:34]}  Bg6 {[%clk 0:01:08]} 33. Rf1 {[%clk 0:00:33]}  h6 {[%clk 0:01:03]} 34. Nc6 {[%clk 0:00:29]}  Re8 {[%clk 0:00:59]} 35. Qd4 {[%clk 0:00:26]}  Qc7 {[%clk 0:00:53]} 36. Nb4 {[%clk 0:00:23]}  Nxb4 {[%clk 0:00:47]} 37. axb4 {[%clk 0:00:24]}  Bd3 {[%clk 0:00:46]} 38. Ra1 {[%clk 0:00:23]}  Qe7 {[%clk 0:00:43]} 39. h3 {[%clk 0:00:19]}  Qxb4 {[%clk 0:00:40]} 40. Bf1 {[%clk 0:00:19]}  Bg6 {[%clk 0:00:31]} 41. Qc3 {[%clk 0:00:18]}  Qd6 {[%clk 0:00:26]} 42. Rd4 {[%clk 0:00:18]}  Qb6 {[%clk 0:00:26]} 43. Qd2 {[%clk 0:00:16]}  Kh7 {[%clk 0:00:25]} 44. Rd6 {[%clk 0:00:16]}  Qc5 {[%clk 0:00:24]} 45. Rdxa6 {[%clk 0:00:16]}  Re5 {[%clk 0:00:20]} 46. Rc1 {[%clk 0:00:16]}  Rd5 {[%clk 0:00:20]} 47. Qe3 {[%clk 0:00:16]}  Qb4 {[%clk 0:00:19]} 48. Qc3 {[%clk 0:00:15]}  Qc5 {[%clk 0:00:19]} 49. Ra8 {[%clk 0:00:14]}  Rg5 {[%clk 0:00:19]} 50. Qe3 {[%clk 0:00:12]}  Qxe3 {[%clk 0:00:18]} 51. fxe3 {[%clk 0:00:13]}  Rxg3+ {[%clk 0:00:19]} 52. Kf2 {[%clk 0:00:11]}  Rg5 {[%clk 0:00:20]} 53. Rb8 {[%clk 0:00:12]}  Be4 {[%clk 0:00:19]} 54. b3 {[%clk 0:00:10]}  Rf5+ {[%clk 0:00:19]} 55. Ke1 {[%clk 0:00:10]}  cxb3 {[%clk 0:00:20]} 56. Rxb5 {[%clk 0:00:08]}  Bc2 {[%clk 0:00:19]} 57. Rxf5 {[%clk 0:00:07]}  Bxf5 {[%clk 0:00:17]} 58. e4 {[%clk 0:00:03]}  b2 {[%clk 0:00:18]} 59. Rb1 {[%clk 0:00:02]}  Bxe4 {[%clk 0:00:17]} 60. Rxb2 {[%clk 0:00:03]}  Bf5 {[%clk 0:00:18]} 61. Rf2 {[%clk 0:00:04]}  Kg6 {[%clk 0:00:18]} 62. Kd2 {[%clk 0:00:05]}  Kg5 {[%clk 0:00:18]} 63. Ke3 {[%clk 0:00:05]}  g6 {[%clk 0:00:19]} 64. Rf3 {[%clk 0:00:05]}  f6 {[%clk 0:00:20]} 65. Rf2 {[%clk 0:00:06]}  h5 {[%clk 0:00:20]} 66. Rg2+ {[%clk 0:00:07]}  Kh4 {[%clk 0:00:21]} 67. Rf2 {[%clk 0:00:07]}  Bxh3 {[%clk 0:00:21]} 68. Bxh3 {[%clk 0:00:08]}  Kxh3 {[%clk 0:00:21]} 69. Rxf6 {[%clk 0:00:08]}  g5 {[%clk 0:00:22]} 70. Kf2 {[%clk 0:00:09]}  Kh4 {[%clk 0:00:22]} 71. Rg6 {[%clk 0:00:09]}  g4 {[%clk 0:00:23]} 72. Kg2 {[%clk 0:00:10]}  g3 {[%clk 0:00:22]} 73. Kf3 {[%clk 0:00:10]}  Kh3 {[%clk 0:00:20]} 74. Rxg3+ {[%clk 0:00:11]}  Kh4 {[%clk 0:00:21]} 75. Rg8 {[%clk 0:00:11]}  Kh3 {[%clk 0:00:22]} 76. Kf2 {[%clk 0:00:11]}  h4 {[%clk 0:00:22]} 77. Kg1 {[%clk 0:00:11]} 1/2-1/2


[Site "https://www.chess.com"]

[Event "Titled Tuesday Blitz July 26 Late 2022"]
[White "Paiva, Henrique M A Albergaria"]
[Black "Shapiro, Daniel"]
[WhiteFideId "1920995"]
[BlackFideId "2001780"]
[WhiteElo "1975"]
[BlackElo "2252"]
[Result "0-1"]
[Round "11"]
[TimeControl "180+1"]
[Date "2022.07.27"]
[WhiteClock "0:00:49"]
[BlackClock "0:00:03"]

1. d4 {[%clk 0:02:36]}  Nf6 {[%clk 0:02:59]} 2. c4 {[%clk 0:02:34]}  e6 {[%clk 0:02:59]} 3. Nc3 {[%clk 0:02:35]}  Bb4 {[%clk 0:02:59]} 4. Bd2 {[%clk 0:02:35]}  d5 {[%clk 0:02:55]} 5. e3 {[%clk 0:02:34]}  O-O {[%clk 0:02:53]} 6. Nf3 {[%clk 0:02:35]}  b6 {[%clk 0:02:52]} 7. Bd3 {[%clk 0:02:35]}  Bb7 {[%clk 0:02:51]} 8. O-O {[%clk 0:02:36]}  Nbd7 {[%clk 0:02:49]} 9. Ne5 {[%clk 0:02:36]}  Nxe5 {[%clk 0:02:34]} 10. dxe5 {[%clk 0:02:37]}  Nd7 {[%clk 0:02:31]} 11. cxd5 {[%clk 0:02:37]}  exd5 {[%clk 0:02:08]} 12. a3 {[%clk 0:02:25]}  Be7 {[%clk 0:02:06]} 13. f4 {[%clk 0:02:24]}  c5 {[%clk 0:02:00]} 14. Qh5 {[%clk 0:01:58]}  g6 {[%clk 0:01:52]} 15. Qh6 {[%clk 0:01:59]}  f5 {[%clk 0:01:43]} 16. Rf3 {[%clk 0:01:53]}  Qe8 {[%clk 0:01:19]} 17. Rh3 {[%clk 0:01:34]}  Rf7 {[%clk 0:00:55]} 18. e6 {[%clk 0:01:33]}  Rg7 {[%clk 0:00:56]} 19. exd7 {[%clk 0:01:34]}  Qxd7 {[%clk 0:00:56]} 20. Ne2 {[%clk 0:01:33]}  d4 {[%clk 0:00:55]} 21. Bc4+ {[%clk 0:01:33]}  Kh8 {[%clk 0:00:55]} 22. exd4 {[%clk 0:01:30]}  Bf6 {[%clk 0:00:54]} 23. dxc5 {[%clk 0:01:29]}  Qxd2 {[%clk 0:00:49]} 24. cxb6 {[%clk 0:01:28]}  Qxb2 {[%clk 0:00:35]} 25. Rd1 {[%clk 0:01:27]}  axb6 {[%clk 0:00:28]} 26. Rd6 {[%clk 0:01:21]}  Rf8 {[%clk 0:00:18]} 27. Re3 {[%clk 0:01:03]}  Qb1+ {[%clk 0:00:16]} 28. Kf2 {[%clk 0:01:03]}  Be4 {[%clk 0:00:15]} 29. Bd3 {[%clk 0:01:01]}  Be7 {[%clk 0:00:14]} 30. Rd7 {[%clk 0:00:57]}  Bf6 {[%clk 0:00:09]} 31. Rd6 {[%clk 0:00:53]}  Qb2 {[%clk 0:00:09]} 32. Bxe4 {[%clk 0:00:52]}  fxe4 {[%clk 0:00:08]} 33. Rxe4 {[%clk 0:00:53]}  Rgf7 {[%clk 0:00:06]} 34. g3 {[%clk 0:00:52]}  Qxa3 {[%clk 0:00:06]} 35. Rde6 {[%clk 0:00:49]}  Qc5+ {[%clk 0:00:05]} 36. Kg2 {[%clk 0:00:49]}  b5 {[%clk 0:00:06]} 37. h4 {[%clk 0:00:44]}  b4 {[%clk 0:00:06]} 38. h5 {[%clk 0:00:44]}  Qxh5 {[%clk 0:00:06]} 39. Qxh5 {[%clk 0:00:45]}  gxh5 {[%clk 0:00:06]} 40. Rb6 {[%clk 0:00:45]}  Bc3 {[%clk 0:00:04]} 41. Nxc3 {[%clk 0:00:45]}  bxc3 {[%clk 0:00:04]} 42. Rc6 {[%clk 0:00:46]}  h4 {[%clk 0:00:04]} 43. Rxc3 {[%clk 0:00:45]}  hxg3 {[%clk 0:00:03]} 44. Kxg3 {[%clk 0:00:46]}  Rg7+ {[%clk 0:00:03]} 45. Kf3 {[%clk 0:00:47]}  Rfg8 {[%clk 0:00:03]} 46. Re6 {[%clk 0:00:46]}  Rg3+ {[%clk 0:00:02]} 47. Ke4 {[%clk 0:00:47]}  Rxc3 {[%clk 0:00:03]} 48. f5 {[%clk 0:00:47]}  Rc4+ {[%clk 0:00:03]} 49. Kd5 {[%clk 0:00:48]}  Ra4 {[%clk 0:00:03]} 50. f6 {[%clk 0:00:48]}  Rd8+ {[%clk 0:00:03]} 51. Kc5 {[%clk 0:00:49]}  Rf4 {[%clk 0:00:03]} 52. Kc6 {[%clk 0:00:48]}  Rf8 {[%clk 0:00:03]} 53. Kd7 {[%clk 0:00:48]}  R8xf6 {[%clk 0:00:03]} 54. Re8+ {[%clk 0:00:49]}  Rf8 {[%clk 0:00:03]} 0-1


[Site "https://www.chess.com"]